bitfinex/quotes_BTCUSD_20241117
["timestamp","ask_amount","ask_price","bid_price","bid_amount"]
[1731836289471,0.57565491,91171.0,91141.0,0.01218924]
[1731836289745,0.57565491,91171.0,91133.0,0.04464705]
[1731836289997,0.6200437,91171.0,91142.0,0.0121874]
[1731836290207,0.6200437,91171.0,91135.0,0.01219124]
[1731836290428,0.6200437,91171.0,91135.0,0.12191724]
[1731836290652,0.6200437,91171.0,91134.0,0.23164585]
[1731836290653,0.6200437,91171.0,91143.0,0.012188]
[1731836290866,0.6150437,91171.0,91143.0,0.012188]
[1731836291134,0.5920437,91171.0,91144.0,0.2316177]
[1731836291342,0.5920437,91171.0,91145.0,0.0121867]
[1731836291550,0.5920437,91171.0,91146.0,0.0121867]
[1731836291770,0.5920437,91171.0,91147.0,0.0121867]
[1731836291976,0.5920437,91171.0,91141.0,0.0817]
[1731836291977,0.5920437,91171.0,91148.0,0.0121867]
[1731836292190,0.5920437,91171.0,91149.0,0.0121867]
[1731836292417,0.5920437,91171.0,91150.0,0.0121867]
[1731836292631,0.5920437,91171.0,91151.0,0.0121867]
[1731836292632,0.6200437,91171.0,91151.0,0.0121867]
[1731836292837,0.6200437,91171.0,91133.0,0.23607605]
[1731836292838,0.6200437,91171.0,91139.0,0.0121867]
[1731836293045,0.6200437,91171.0,91135.0,0.01219185]
[1731836293046,0.6200437,91171.0,91140.0,0.0121867]
[1731836293476,0.6200437,91171.0,91141.0,0.0121867]
[1731836293718,0.6200437,91171.0,91135.0,0.109726]
[1731836293927,0.6200437,91171.0,91136.0,0.01218674]
[1731836294136,0.6200437,91171.0,91137.0,0.01218674]
[1731836294351,0.5970437,91171.0,91138.0,0.01218674]
[1731836294577,0.5970437,91171.0,91139.0,0.01218674]
[1731836294802,0.5970437,91171.0,91133.0,0.09389059]
[1731836294803,0.5970437,91171.0,91140.0,0.01218674]
[1731836295041,0.5970437,91171.0,91141.0,0.01218674]
[1731836295269,0.5970437,91171.0,91142.0,0.01218674]
[1731836295482,0.5970437,91171.0,91143.0,0.01218674]
[1731836295694,0.109715,91145.0,91144.0,0.01218674]
[1731836295925,0.109715,91145.0,91144.0,0.00761544]
[1731836295926,0.28982336,91145.0,91144.0,0.00761544]
[1731836296403,0.50925536,91145.0,91144.0,0.00761544]
[1731836296983,0.50925536,91145.0,91144.0,0.0076168]
[1731836300851,0.50925536,91145.0,91144.0,0.00761259]
[1731836301682,0.50925536,91145.0,91144.0,0.00737559]
[1731836301883,0.329147,91145.0,91144.0,0.00737559]
[1731836302696,0.321147,91145.0,91144.0,0.00737559]
[1731836303752,0.44463385,91152.0,91144.0,0.00737559]
[1731836303753,0.219425,91147.0,91144.0,0.00737559]
[1731836304046,0.1802,91162.0,91141.0,0.0817]
[1731836304260,0.109715,91145.0,91144.0,0.01219497]
[1731836304480,0.109715,91145.0,91144.0,0.02439093]
[1731836304688,0.109715,91145.0,91144.0,0.01219596]
[1731836306258,0.109715,91145.0,91144.0,0.01576898]
[1731836306735,0.109715,91145.0,91144.0,0.0157756]
[1731836307187,0.109715,91145.0,91144.0,0.01748817]
[1731836307618,0.109715,91145.0,91144.0,0.00528622]
[1731836307852,0.109715,91145.0,91144.0,0.0139199]
[1731836309568,0.109715,91145.0,91144.0,0.0017132]
[1731836313841,0.109715,91145.0,91144.0,0.00934462]
[1731836314318,0.109715,91145.0,91144.0,0.02155971]
[1731836314596,0.0802,91146.0,91144.0,0.00934681]
[1731836314843,0.109715,91145.0,91144.0,0.00934681]
[1731836315082,0.109715,91145.0,91144.0,0.009347]
[1731836316696,0.109715,91145.0,91144.0,0.02156602]
[1731836316953,0.109715,91145.0,91144.0,0.02156806]
[1731836317184,0.109715,91145.0,91144.0,0.00934909]
[1731836317410,0.101715,91145.0,91144.0,0.00934909]
[1731836317674,0.101715,91145.0,91144.0,0.02156799]
[1731836317898,0.52477919,91145.0,91144.0,0.02156799]
[1731836318127,0.52477919,91145.0,91144.0,0.00934909]
[1731836318128,0.44267755,91145.0,91144.0,0.00934909]
[1731836318353,0.44267755,91145.0,91144.0,0.0017132]
[1731836318578,0.44353435,91145.0,91144.0,0.0017132]
[1731836318839,0.44853435,91145.0,91144.0,0.0017132]
[1731836319049,0.45353435,91145.0,91144.0,0.0017132]
[1731836319267,0.20974,91124.0,91123.0,0.01221668]
[1731836319531,0.109755,91112.0,91105.0,0.01527331]
[1731836319740,0.109755,91112.0,91111.0,0.02070712]
[1731836322538,0.219496,91118.0,91111.0,0.02070712]
[1731836322746,0.109753,91113.0,91112.0,0.01985072]
[1731836322967,0.109753,91113.0,91112.0,0.02368454]
[1731836323241,0.109753,91113.0,91112.0,0.01985072]
[1731836325321,0.109753,91113.0,91111.0,0.0008564]
[1731836325322,0.219502,91115.0,91111.0,0.0008564]
[1731836325551,0.109753,91113.0,91112.0,0.01983299]
[1731836328740,0.21881555,91113.0,91112.0,0.01982277]
[1731836328951,0.21881555,91113.0,91112.0,0.00762355]
[1731836328952,0.31026439,91113.0,91112.0,0.00762355]
[1731836329173,0.39146439,91113.0,91112.0,0.00762355]
[1731836329380,0.39146439,91113.0,91111.0,0.0008564]
[1731836329381,0.28171139,91113.0,91111.0,0.0008564]
[1731836329631,0.34741755,91112.0,91111.0,0.0008564]
[1731836329838,0.44741755,91112.0,91111.0,0.0008564]
[1731836332235,0.45241755,91112.0,91111.0,0.0008564]
[1731836332484,0.44441755,91112.0,91111.0,0.0008564]
[1731836333625,0.44941755,91112.0,91111.0,0.0008564]
[1731836333862,0.109781,91090.0,91089.0,0.01219953]
[1731836334119,0.109783,91088.0,91087.0,0.0017122]
[1731836334338,0.109783,91088.0,91087.0,0.00933746]
[1731836334831,0.109783,91088.0,91087.0,0.0017122]
[1731836335043,0.21884555,91088.0,91087.0,0.0017122]
[1731836335272,0.31884555,91088.0,91087.0,0.0017122]
[1731836335735,0.44744555,91088.0,91087.0,0.0017122]
[1731836335960,0.49313397,91088.0,91087.0,0.0017122]
[1731836336420,0.49313397,91088.0,91078.0,0.0008562]
[1731836336421,0.005,91080.0,91078.0,0.0008562]
[1731836336658,0.65227327,91079.0,91078.0,0.0008562]
[1731836337102,0.55236491,91079.0,91078.0,0.0008562]
[1731836337325,0.57536491,91079.0,91078.0,0.0008562]
[1731836338656,0.55236491,91079.0,91078.0,0.0008562]
[1731836340161,0.54736491,91079.0,91078.0,0.0008562]
[1731836342821,0.338394,91079.0,91078.0,0.0008562]
[1731836342824,0.209794,91079.0,91078.0,0.0008562]
[1731836343025,0.109794,91079.0,91078.0,0.0008562]
[1731836343886,0.219573,91086.0,91078.0,0.0008562]
[1731836344101,0.219548,91096.0,91079.0,0.00760695]
[1731836344319,0.219548,91096.0,91078.0,0.0008562]
[1731836344320,0.16430164,91092.0,91080.0,0.00760695]
[1731836344542,0.0474,91100.0,91078.0,0.0008562]
[1731836344543,0.0474,91100.0,91081.0,0.22719095]
[1731836344765,0.09990836,91105.0,91083.0,0.219579]
[1731836344973,0.09990836,91105.0,91084.0,0.00760695]
[1731836344974,0.16430164,91094.0,91084.0,0.00760695]
[1731836345207,0.219558,91092.0,91085.0,0.00760695]
[1731836345420,0.109786,91086.0,91085.0,0.00760695]
[1731836345632,0.109784,91088.0,91086.0,0.0039758]
[1731836346067,0.109784,91088.0,91087.0,0.00760695]
[1731836346536,0.109783,91089.0,91087.0,0.02372271]
[1731836346741,0.21956,91091.0,91087.0,0.00397156]
[1731836346742,0.109783,91088.0,91087.0,0.00397156]
[1731836346956,0.109783,91088.0,91087.0,0.0075943]
[1731836347175,0.109783,91088.0,91087.0,0.01156586]
[1731836347408,0.101783,91088.0,91087.0,0.0197385]
[1731836347832,0.219551,91095.0,91087.0,0.02371006]
[1731836348042,0.10978,91091.0,91087.0,0.02371006]
[1731836348258,0.10978,91091.0,91088.0,0.0197385]
[1731836348463,0.10978,91091.0,91089.0,0.0197385]
[1731836348681,0.10978,91091.0,91088.0,0.00397326]
[1731836348682,0.10978,91091.0,91090.0,0.0197385]
[1731836348896,0.10978,91091.0,91090.0,0.02371006]
[1731836349771,0.10978,91091.0,91090.0,0.0197385]
[1731836350457,0.10978,91091.0,91090.0,0.02370014]
[1731836351320,0.10978,91091.0,91090.0,0.02372836]
[1731836354308,0.10978,91091.0,91090.0,0.01976672]
[1731836355367,0.10978,91091.0,91090.0,0.02371674]
[1731836355619,0.1106374,91091.0,91090.0,0.02371674]
[1731836356248,0.1106374,91091.0,91090.0,0.01976672]
[1731836356913,0.1106374,91091.0,91090.0,0.00760199]
[1731836358001,0.109783,91089.0,91083.0,0.109789]
[1731836358251,0.0008574,91091.0,91079.0,0.0809]
[1731836358252,0.0008574,91091.0,91085.0,0.219573]
[1731836358462,0.0008574,91091.0,91086.0,0.109785]
[1731836358703,0.0008574,91091.0,91081.0,0.219584]
[1731836358915,0.0008574,91091.0,91087.0,0.00395256]
[1731836359148,0.0008574,91091.0,91086.0,0.109786]
[1731836359355,0.0008574,91091.0,91088.0,0.00395171]
[1731836359576,0.0008574,91091.0,91087.0,0.00395256]
[1731836359797,0.0008574,91091.0,91089.0,0.00395086]
[1731836360017,0.109782,91090.0,91084.0,0.109788]
[1731836360232,0.109782,91089.0,91084.0,0.109788]
[1731836360461,0.16430164,91085.0,91079.0,0.0809]
[1731836360672,0.0008574,91091.0,91078.0,0.0008562]
[1731836360673,0.109794,91079.0,91078.0,0.0008562]
[1731836362400,0.101794,91079.0,91078.0,0.0008562]
[1731836363517,0.23885655,91079.0,91078.0,0.0008562]
[1731836365075,0.21085655,91079.0,91078.0,0.0008562]
[1731836366247,0.101794,91079.0,91078.0,0.0008562]
[1731836370216,0.101794,91079.0,91078.0,0.00844016]
[1731836371246,0.0058574,91091.0,91078.0,0.00844016]
[1731836371247,0.0008574,91091.0,91078.0,0.00844016]
[1731836371476,0.109791,91082.0,91079.0,0.019719]
[1731836371688,0.0008574,91091.0,91079.0,0.019719]
[1731836371689,0.109787,91086.0,91080.0,0.019719]
[1731836371917,0.0008574,91091.0,91080.0,0.239304]
[1731836372123,0.109783,91089.0,91083.0,0.109789]
[1731836372333,0.109784,91088.0,91084.0,0.01972242]
[1731836372590,0.109784,91088.0,91085.0,0.01972242]
[1731836372800,0.109784,91088.0,91085.0,0.02349319]
[1731836373004,0.109784,91088.0,91086.0,0.03186119]
[1731836373210,0.109784,91088.0,91087.0,0.02349375]
[1731836374268,0.109784,91088.0,91087.0,0.01135489]
[1731836374525,0.109784,91088.0,91087.0,0.02349375]
[1731836374772,0.109784,91088.0,91087.0,0.02349357]
[1731836375435,0.109784,91088.0,91087.0,0.01135482]
[1731836375634,0.109784,91088.0,91087.0,0.00758575]
[1731836375844,0.109784,91088.0,91087.0,0.01135482]
[1731836377647,0.101784,91088.0,91087.0,0.01135482]
[1731836378086,0.101784,91088.0,91087.0,0.02349357]
[1731836378609,0.109781,91090.0,91087.0,0.0197245]
[1731836378898,0.109782,91089.0,91088.0,0.0197245]
[1731836379236,0.109782,91089.0,91084.0,0.109788]
[1731836379438,0.109782,91089.0,91088.0,0.01971987]
[1731836379841,0.1106384,91091.0,91088.0,0.01971987]
[1731836380053,0.0008574,91091.0,91089.0,0.01971987]
[1731836380317,0.109781,91090.0,91088.0,0.00372646]
[1731836380525,0.109781,91090.0,91089.0,0.01971358]
[1731836380940,0.109781,91090.0,91089.0,0.01130801]
[1731836381370,0.109781,91090.0,91089.0,0.02344004]
[1731836381851,0.0008574,91091.0,91090.0,0.109781]
[1731836382078,0.0008574,91091.0,91090.0,0.12949458]
[1731836382325,0.0008574,91091.0,91090.0,0.13320359]
[1731836382572,0.0008574,91091.0,91090.0,0.13539904]
[1731836383215,0.0008574,91091.0,91090.0,0.13320359]
[1731836383833,0.0008574,91091.0,91090.0,0.21859893]
[1731836384047,0.0008574,91091.0,91090.0,0.33266148]
[1731836384253,0.0008574,91091.0,91090.0,0.36017006]
[1731836384875,0.0008574,91091.0,91090.0,0.76278416]
[1731836385283,0.0008574,91091.0,91090.0,0.76078416]
[1731836385500,0.0008574,91091.0,91090.0,0.78578416]
[1731836385919,0.0008574,91091.0,91090.0,0.78577737]
[1731836386128,0.0008574,91091.0,91090.0,0.78377737]
[1731836386334,0.0008574,91091.0,91090.0,0.78577737]
[1731836387155,0.0008574,91091.0,91090.0,0.88577737]
[1731836389302,0.0008574,91091.0,91090.0,0.88575275]
[1731836391595,0.0008574,91091.0,91090.0,1.13098154]
[1731836392556,0.15715904,91110.0,91109.0,0.109758]
[1731836392776,0.15715904,91110.0,91109.0,0.12944017]
[1731836392979,0.15715904,91110.0,91109.0,0.1134059]
[1731836393136,0.27404764,91120.0,91113.0,0.109753]
[1731836393334,0.27404764,91120.0,91114.0,0.00755947]
[1731836393541,0.27404764,91120.0,91115.0,0.00755947]
[1731836393743,0.27404764,91120.0,91116.0,0.00755947]
[1731836393950,0.27404764,91120.0,91117.0,0.00755947]
[1731836394191,0.219483,91123.0,91116.0,0.00365044]
[1731836394192,0.219483,91123.0,91118.0,0.00755719]
[1731836394426,0.109746,91119.0,91118.0,0.00364875]
[1731836394622,0.109746,91119.0,91118.0,0.00755837]
[1731836394815,0.21949,91121.0,91118.0,0.0036479]
[1731836395023,0.109746,91119.0,91109.0,0.219517]
[1731836395276,0.10975,91117.0,91111.0,0.109755]
[1731836395470,0.10975,91117.0,91112.0,0.00755907]
[1731836395770,0.109749,91117.0,91113.0,0.00755907]
[1731836395999,0.109749,91117.0,91112.0,0.01571627]
[1731836396000,0.219471,91128.0,91114.0,0.00755907]
[1731836396224,0.219471,91128.0,91115.0,0.00755907]
[1731836396426,0.109749,91117.0,91116.0,0.00755907]
[1731836396606,0.219476,91126.0,91116.0,0.00755907]
[1731836396809,0.109747,91119.0,91117.0,0.00755907]
[1731836397026,0.109747,91118.0,91117.0,0.00755907]
[1731836397485,0.109747,91118.0,91117.0,0.01117586]
[1731836398448,0.109747,91118.0,91117.0,0.00755907]
[1731836398449,0.186047,91118.0,91117.0,0.00755907]
[1731836398680,0.186047,91118.0,91104.0,0.005]
[1731836398681,0.109758,91110.0,91105.0,0.05154577]
[1731836398924,0.109756,91111.0,91106.0,0.00756527]
[1731836399170,0.109756,91111.0,91107.0,0.00756527]
[1731836399416,0.219509,91113.0,91108.0,0.00756527]
[1731836399417,0.109755,91112.0,91108.0,0.00756527]
[1731836399665,0.109755,91112.0,91108.0,0.00362003]
[1731836399915,0.109755,91112.0,91109.0,0.00756527]
[1731836400141,0.219509,91113.0,91109.0,0.00756527]
[1731836400142,0.109756,91111.0,91109.0,0.00756527]
[1731836400421,0.109756,91111.0,91110.0,0.01118446]
[1731836400655,0.109754,91113.0,91110.0,0.01118446]
[1731836400860,0.109754,91113.0,91111.0,0.00756527]
[1731836401069,0.109754,91113.0,91110.0,0.00361919]
[1731836401070,0.109754,91113.0,91112.0,0.00756527]
[1731836402146,0.1526343,91113.0,91088.0,0.0008574]
[1731836402362,0.109774,91096.0,91094.0,0.16430164]
[1731836402573,0.219522,91107.0,91090.0,0.10978]
[1731836402574,0.219542,91099.0,91090.0,0.10978]
[1731836402785,0.109777,91094.0,91088.0,0.0058574]
[1731836403007,0.219542,91099.0,91091.0,0.00757433]
[1731836403221,0.16430164,91106.0,91092.0,0.01257433]
[1731836403432,0.16430164,91106.0,91093.0,0.00976961]
[1731836403644,0.16430164,91106.0,91095.0,0.219551]
[1731836403856,0.16430164,91106.0,91093.0,0.00219528]
[1731836403857,0.0483,91108.0,91107.0,0.109761]
[1731836404078,0.0017148,91111.0,91110.0,0.109757]
[1731836404300,0.0017148,91111.0,91110.0,0.25939388]
[1731836404522,0.0017148,91111.0,91110.0,0.42304269]
[1731836404731,0.0017148,91111.0,91110.0,0.45364691]
[1731836404973,0.0017148,91111.0,91110.0,0.84133171]
[1731836405228,9.667e-05,91111.0,91110.0,0.84133171]
[1731836405448,9.667e-05,91111.0,91110.0,0.98800515]
[1731836405666,9.667e-05,91111.0,91110.0,0.46775247]
[1731836405875,9.667e-05,91111.0,91110.0,0.56553953]
[1731836406293,9.667e-05,91111.0,91110.0,0.46775247]
[1731836406962,9.667e-05,91111.0,91110.0,0.48966674]
[1731836407177,9.667e-05,91111.0,91110.0,0.58740324]
[1731836407601,0.16430164,91128.0,91110.0,0.58740324]
[1731836407602,0.15639831,91128.0,91127.0,0.109736]
[1731836407827,0.15639831,91128.0,91127.0,0.11731033]
[1731836408311,0.109722,91139.0,91133.0,0.109728]
[1731836408524,0.109722,91139.0,91134.0,0.11730233]
[1731836408732,0.109722,91139.0,91135.0,0.00757433]
[1731836408936,0.109722,91139.0,91136.0,0.00757433]
[1731836409163,0.109722,91139.0,91134.0,0.109728]
[1731836409373,0.2965888,91145.0,91137.0,0.0038112]
[1731836409603,0.21345854,91144.0,91136.0,0.00754829]
[1731836409832,0.109722,91139.0,91133.0,0.329187]
[1731836410075,0.109722,91139.0,91137.0,0.01136398]
[1731836410322,0.21345854,91144.0,91134.0,0.109728]
[1731836410323,0.109721,91141.0,91138.0,0.00754801]
[1731836410571,0.109722,91140.0,91139.0,0.00754801]
[1731836410781,0.0491569,91144.0,91139.0,0.01135921]
[1731836410991,0.0491569,91144.0,91140.0,0.00210145]
[1731836411220,0.109718,91143.0,91139.0,0.0038112]
[1731836411425,0.109718,91143.0,91141.0,0.00381215]
[1731836411630,0.109718,91143.0,91137.0,0.109724]
[1731836411842,0.109718,91143.0,91142.0,0.00381025]
[1731836412069,0.109718,91143.0,91133.0,0.219458]
[1731836412070,0.109719,91142.0,91133.0,0.219458]
[1731836412511,0.109719,91142.0,91137.0,0.109724]
[1731836412726,0.0491569,91144.0,91134.0,0.00381692]
[1731836412985,0.109717,91143.0,91137.0,0.109724]
[1731836413175,0.109717,91143.0,91137.0,0.109723]
[1731836413385,0.0491569,91144.0,91138.0,0.00381406]
[1731836413828,0.0491569,91144.0,91132.0,0.219461]
[1731836414035,0.0491569,91144.0,91139.0,0.11353606]
[1731836414263,0.1588729,91144.0,91139.0,0.109722]
[1731836414479,0.1588729,91144.0,91140.0,0.0038105]
[1731836414691,0.0491569,91144.0,91140.0,0.0038105]
[1731836414905,0.0008569,91144.0,91143.0,0.109717]
[1731836415324,0.0008569,91144.0,91143.0,0.12560598]
[1731836418593,0.00025408,91144.0,91143.0,0.12560598]
[1731836418817,0.00025408,91144.0,91143.0,0.16925325]
[1731836421603,0.00025408,91144.0,91143.0,0.16924121]
[1731836422019,0.00025408,91144.0,91143.0,0.12559394]
[1731836422287,0.00025408,91144.0,91143.0,0.01587694]
[1731836422520,0.07545408,91144.0,91143.0,0.01587694]
[1731836422760,0.07545408,91144.0,91143.0,0.01206843]
[1731836422761,0.23257008,91144.0,91143.0,0.01206843]
[1731836422982,0.23257008,91144.0,91127.0,0.219472]
[1731836422983,0.21944,91141.0,91127.0,0.219472]
[1731836423197,0.109728,91135.0,91126.0,0.005]
[1731836423400,0.109724,91138.0,91130.0,0.109733]
[1731836423649,0.12285408,91144.0,91132.0,0.01207049]
[1731836423851,0.12285408,91144.0,91133.0,0.01961953]
[1731836423852,0.109725,91137.0,91133.0,0.01961953]
[1731836424060,0.109725,91137.0,91134.0,0.01207415]
[1731836424273,0.219445,91139.0,91135.0,0.01207415]
[1731836424274,0.109724,91138.0,91135.0,0.01207415]
[1731836424508,0.109725,91137.0,91136.0,0.01207415]
[1731836424929,0.109725,91137.0,91136.0,0.01961953]
[1731836425610,0.109725,91137.0,91136.0,0.00754538]
[1731836426536,0.240324,91137.0,91136.0,0.00753666]
[1731836426756,0.109729,91133.0,91132.0,0.01207049]
[1731836427213,0.109729,91133.0,91132.0,0.01960808]
[1731836428755,0.109729,91133.0,91132.0,0.03166992]
[1731836429578,0.1306,91137.0,91132.0,0.03166992]
[1731836429788,0.2211468,91144.0,91132.0,0.03166992]
[1731836429789,0.0017138,91144.0,91133.0,0.109729]
[1731836430004,0.16430164,91141.0,91134.0,0.01206184]
[1731836430205,0.0017138,91144.0,91135.0,0.00753759]
[1731836430414,0.0017138,91144.0,91136.0,0.12160014]
[1731836430636,0.0017138,91144.0,91143.0,0.109717]
[1731836430838,0.0017138,91144.0,91143.0,0.12177884]
[1731836431052,0.0017138,91144.0,91143.0,0.02337101]
[1731836431464,0.0017138,91144.0,91143.0,0.01959943]
[1731836431687,0.0017138,91144.0,91143.0,0.02337101]
[1731836431933,0.0017138,91144.0,91143.0,0.13308801]
[1731836432586,0.0017138,91144.0,91143.0,0.02337101]
[1731836432995,0.0017138,91144.0,91143.0,0.01959943]
[1731836433204,0.1114298,91144.0,91143.0,0.01959943]
[1731836433439,0.1612298,91144.0,91143.0,0.02353835]
[1731836433641,0.1612298,91144.0,91143.0,0.01959943]
[1731836433981,0.1612298,91144.0,91143.0,0.02353835]
[1731836434837,0.0515138,91144.0,91143.0,0.01959943]
[1731836435041,0.0515138,91144.0,91143.0,0.02353835]
[1731836435255,0.0515138,91144.0,91143.0,0.13325535]
[1731836435463,0.0017138,91144.0,91143.0,0.13325535]
[1731836436044,0.0017138,91144.0,91143.0,0.02353835]
[1731836437191,0.0017138,91144.0,91143.0,0.13331166]
[1731836437380,0.109711,91148.0,91143.0,0.14541235]
[1731836437614,0.109711,91148.0,91144.0,0.01965574]
[1731836437801,0.109711,91148.0,91145.0,0.0075593]
[1731836438009,0.109711,91148.0,91146.0,0.01965574]
[1731836438222,0.109711,91148.0,91145.0,0.00393963]
[1731836438223,0.109711,91148.0,91147.0,0.01965451]
[1731836439022,0.0498,91152.0,91147.0,0.01965451]
[1731836439580,0.0498,91152.0,91148.0,0.01965451]
[1731836439788,0.109701,91157.0,91151.0,0.109707]
[1731836439999,0.109701,91157.0,91152.0,0.01965451]
[1731836440211,0.109701,91157.0,91153.0,0.01965451]
[1731836440420,0.0498,91162.0,91156.0,0.219403]
[1731836440628,0.219365,91173.0,91156.0,0.219404]
[1731836440629,0.0764,91167.0,91156.0,0.219404]
[1731836440852,0.16430164,91161.0,91157.0,0.02356108]
[1731836441034,0.0764,91167.0,91158.0,0.01965451]
[1731836441291,0.0764,91167.0,91159.0,0.01965451]
[1731836441292,0.109694,91163.0,91159.0,0.01965451]
[1731836441516,0.109694,91163.0,91160.0,0.02266804]
[1731836441517,0.109696,91161.0,91160.0,0.02266804]
[1731836441728,0.109694,91163.0,91160.0,0.03476372]
[1731836442142,0.109694,91163.0,91161.0,0.03476372]
[1731836442349,0.109694,91163.0,91162.0,0.03476372]
[1731836442552,0.0764,91167.0,91162.0,0.03476372]
[1731836442553,0.109691,91165.0,91162.0,0.03476372]
[1731836442770,0.109691,91165.0,91161.0,0.00390024]
[1731836442771,0.109691,91165.0,91163.0,0.03476372]
[1731836442972,0.109691,91165.0,91156.0,0.23150257]
[1731836442973,0.0764,91167.0,91164.0,0.03476372]
[1731836443174,0.219382,91165.0,91162.0,0.00389605]
[1731836443379,0.109694,91163.0,91157.0,0.01209957]
[1731836443570,0.0764,91167.0,91152.0,0.219412]
[1731836443571,0.109695,91162.0,91158.0,0.04683405]
[1731836443694,0.109695,91162.0,91159.0,0.03473448]
[1731836443894,0.0764,91167.0,91160.0,0.03473448]
[1731836444092,0.0764,91167.0,91152.0,0.219412]
[1731836444093,0.109696,91161.0,91157.0,0.01209957]
[1731836444343,0.109693,91163.0,91158.0,0.0347359]
[1731836444659,0.219382,91165.0,91157.0,0.12179957]
[1731836444660,0.109697,91160.0,91159.0,0.0347359]
[1731836445690,0.109697,91160.0,91159.0,0.03473274]
[1731836446509,0.109694,91162.0,91159.0,0.03473274]
[1731836446723,0.109696,91161.0,91160.0,0.03473274]
[1731836446934,0.0764,91167.0,91160.0,0.03473274]
[1731836447144,0.0764,91167.0,91154.0,0.0120845]
[1731836447145,0.0764,91167.0,91161.0,0.03473274]
[1731836447353,0.0764,91167.0,91162.0,0.03473274]
[1731836447354,0.10969,91166.0,91162.0,0.03473274]
[1731836447558,0.10969,91166.0,91163.0,0.03473274]
[1731836447764,0.10969,91166.0,91158.0,0.0120845]
[1731836447765,0.219382,91165.0,91158.0,0.0120845]
[1731836447986,0.16430164,91166.0,91143.0,0.219435]
[1731836447987,0.219384,91164.0,91143.0,0.219435]
[1731836448200,0.1097,91157.0,91156.0,0.01208102]
[1731836448415,0.16430164,91166.0,91156.0,0.02717674]
[1731836448609,0.109697,91160.0,91159.0,0.00754724]
[1731836448839,0.159497,91160.0,91159.0,0.00754724]
[1731836449081,0.159497,91160.0,91159.0,0.01962723]
[1731836450271,0.234897,91160.0,91159.0,0.01962723]
[1731836451348,0.1260568,91160.0,91150.0,0.0017136]
[1731836451583,0.2357538,91160.0,91159.0,0.00754824]
[1731836451855,0.1260568,91160.0,91151.0,0.01962698]
[1731836452067,0.109704,91155.0,91152.0,0.01962918]
[1731836452367,0.109704,91155.0,91153.0,0.01962918]
[1731836452585,0.109703,91155.0,91153.0,0.01962918]
[1731836452840,0.109703,91155.0,91150.0,0.0017136]
[1731836452841,0.1260568,91160.0,91157.0,0.1097]
[1731836453056,0.1260568,91160.0,91158.0,0.01962918]
[1731836453288,0.1260568,91160.0,91159.0,0.01962918]
[1731836453515,0.2357538,91160.0,91159.0,0.01962918]
[1731836453772,0.1260568,91160.0,91159.0,0.01962918]
[1731836454262,0.2357538,91160.0,91159.0,0.01962918]
[1731836455197,0.2357538,91160.0,91159.0,0.01962936]
[1731836455963,0.0008568,91160.0,91159.0,0.01962936]
[1731836457362,0.0017154,91179.0,91169.0,0.119686]
[1731836457366,0.16430164,91171.0,91169.0,0.223186]
[1731836457647,0.16430164,91171.0,91170.0,0.144685]
[1731836457866,0.0017154,91179.0,91178.0,0.114675]
[1731836458084,0.0017154,91179.0,91178.0,0.48852867]
[1731836458291,0.0017154,91179.0,91178.0,0.62251048]
[1731836458502,0.0017154,91179.0,91178.0,0.63457514]
[1731836458709,0.0017154,91179.0,91178.0,0.95153048]
[1731836458873,0.0017154,91179.0,91178.0,0.99627432]
[1731836459323,0.0017154,91179.0,91178.0,0.8040407]
[1731836459798,0.0017154,91179.0,91178.0,1.1655585]
[1731836460067,0.0017154,91179.0,91178.0,1.21462732]
[1731836460754,0.0017154,91179.0,91178.0,1.01864385]
[1731836461412,0.0017154,91179.0,91178.0,1.16543817]
[1731836461628,0.0017154,91179.0,91178.0,1.16517551]
[1731836461871,0.0017154,91179.0,91178.0,1.0183817]
[1731836462099,0.0017154,91179.0,91178.0,1.1651619]
[1731836462327,0.0017154,91179.0,91178.0,0.65713343]
[1731836462532,0.0017154,91179.0,91178.0,0.75494688]
[1731836462739,0.0017154,91179.0,91178.0,0.77650168]
[1731836462953,0.0017154,91179.0,91178.0,0.68211184]
[1731836463579,0.0017154,91179.0,91178.0,0.66248248]
[1731836463878,0.0017154,91179.0,91178.0,0.7798546]
[1731836464026,0.0017154,91179.0,91178.0,0.68203803]
[1731836464487,0.0017154,91179.0,91178.0,0.52722311]
[1731836464709,0.0017154,91179.0,91178.0,0.53086635]
[1731836465141,0.0017154,91179.0,91178.0,0.64054135]
[1731836465872,0.0017154,91179.0,91178.0,0.89458152]
[1731836466347,0.0017154,91179.0,91178.0,0.90661448]
[1731836467035,0.0017154,91179.0,91178.0,1.03787047]
[1731836467282,0.0017154,91179.0,91178.0,0.89458101]
[1731836467528,0.16430164,91187.0,91186.0,0.328996]
[1731836467807,0.16316184,91200.0,91186.0,0.1281662]
[1731836468046,0.16316184,91200.0,91199.0,0.10965]
[1731836468301,0.16316184,91200.0,91199.0,0.01094699]
[1731836468545,0.0017138,91204.0,91199.0,0.01459023]
[1731836468801,0.0017138,91204.0,91201.0,0.109647]
[1731836469024,0.0017138,91204.0,91202.0,0.00752077]
[1731836469252,0.0491138,91204.0,91202.0,0.00752077]
[1731836469468,0.0491138,91204.0,91202.0,0.01116401]
[1731836469678,0.0491138,91204.0,91202.0,0.00752077]
[1731836470295,0.1587578,91204.0,91202.0,0.01116223]
[1731836470511,0.0491138,91204.0,91193.0,0.219313]
[1731836470758,0.0491138,91204.0,91196.0,0.109653]
[1731836470962,0.1587578,91204.0,91197.0,0.00364472]
[1731836471114,0.1587578,91204.0,91198.0,0.00750604]
[1731836471319,0.0491138,91204.0,91199.0,0.00750604]
[1731836471549,0.0491138,91204.0,91200.0,0.00750604]
[1731836471755,0.0491138,91204.0,91201.0,0.00750604]
[1731836471956,0.1587578,91204.0,91202.0,0.0111475]
[1731836472354,0.1587578,91204.0,91202.0,0.00750604]
[1731836472565,0.0491138,91204.0,91202.0,0.00750604]
[1731836472979,0.0491138,91204.0,91202.0,0.01114869]
[1731836473444,0.1587588,91204.0,91202.0,0.01114869]
[1731836473664,0.0491138,91204.0,91202.0,0.01114869]
[1731836473889,0.1113604,91203.0,91202.0,0.00750604]
[1731836474117,0.0017154,91203.0,91202.0,0.00750604]
[1731836474567,0.109652,91198.0,91194.0,0.01200767]
[1731836474796,0.32895,91199.0,91195.0,0.01114845]
[1731836475013,0.005,91200.0,91196.0,0.00750391]
[1731836475266,0.005,91200.0,91195.0,0.00364454]
[1731836475267,0.114649,91200.0,91197.0,0.00750391]
[1731836475489,0.114649,91200.0,91198.0,0.00750391]
[1731836475712,0.114649,91200.0,91199.0,0.00750391]
[1731836477493,0.109653,91197.0,91189.0,0.16430164]
[1731836477746,0.109651,91198.0,91190.0,0.01115141]